{"text_format":"3","workbook":"xlsx","n_sheets":4,"sheets":["Resumen","Activos","Deudas","Categorías"],"not_rendered":{"defined_names":9},"read":"whole","date_system":"1900"}

{"sheet":"Resumen","index":0,"n_rows":13,"n_cols":4,"rows_kept":13}
[]
[null,"BALANCE CONTABLE "]
[null,null,{"$f":"\"FY-\"&YEAR(TODAY())-1","v":"FY-2023"},{"$f":"\"FY-\"&YEAR(TODAY())","v":"FY-2024"}]
[null,"TIPO DE ACTIVO","AÑO ANTERIOR","AÑO ACTUAL"]
[null,"Activo circulante",{"$f":"SUMIFS(Activos[AÑO ANTERIOR],Activos[TIPO DE ACTIVO],Panel[[#This Row],[TIPO DE ACTIVO]])+SUMIFS(Deudas[AÑO ANTERIOR],Deudas[TIPO DE PASIVO],Panel[[#This Row],[TIPO DE ACTIVO]])","v":600},{"$f":"SUMIFS(Activos[AÑO ACTUAL],Activos[TIPO DE ACTIVO],Panel[[#This Row],[TIPO DE ACTIVO]])+SUMIFS(Deudas[AÑO ACTUAL],Deudas[TIPO DE PASIVO],Panel[[#This Row],[TIPO DE ACTIVO]])","v":600}]
[null,"Activo fijo",{"$f":"SUMIFS(Activos[AÑO ANTERIOR],Activos[TIPO DE ACTIVO],Panel[[#This Row],[TIPO DE ACTIVO]])+SUMIFS(Deudas[AÑO ANTERIOR],Deudas[TIPO DE PASIVO],Panel[[#This Row],[TIPO DE ACTIVO]])","v":{"v":-100,"d":"-100 "}},{"$f":"SUMIFS(Activos[AÑO ACTUAL],Activos[TIPO DE ACTIVO],Panel[[#This Row],[TIPO DE ACTIVO]])+SUMIFS(Deudas[AÑO ACTUAL],Deudas[TIPO DE PASIVO],Panel[[#This Row],[TIPO DE ACTIVO]])","v":{"v":-85,"d":"-85 "}}]
[null,"Otro activo",{"$f":"SUMIFS(Activos[AÑO ANTERIOR],Activos[TIPO DE ACTIVO],Panel[[#This Row],[TIPO DE ACTIVO]])+SUMIFS(Deudas[AÑO ANTERIOR],Deudas[TIPO DE PASIVO],Panel[[#This Row],[TIPO DE ACTIVO]])","v":0},{"$f":"SUMIFS(Activos[AÑO ACTUAL],Activos[TIPO DE ACTIVO],Panel[[#This Row],[TIPO DE ACTIVO]])+SUMIFS(Deudas[AÑO ACTUAL],Deudas[TIPO DE PASIVO],Panel[[#This Row],[TIPO DE ACTIVO]])","v":0}]
[null,"Pasivo circulante",{"$f":"SUMIFS(Activos[AÑO ANTERIOR],Activos[TIPO DE ACTIVO],Panel[[#This Row],[TIPO DE ACTIVO]])+SUMIFS(Deudas[AÑO ANTERIOR],Deudas[TIPO DE PASIVO],Panel[[#This Row],[TIPO DE ACTIVO]])","v":500},{"$f":"SUMIFS(Activos[AÑO ACTUAL],Activos[TIPO DE ACTIVO],Panel[[#This Row],[TIPO DE ACTIVO]])+SUMIFS(Deudas[AÑO ACTUAL],Deudas[TIPO DE PASIVO],Panel[[#This Row],[TIPO DE ACTIVO]])","v":350}]
[null,"Pasivo a largo plazo",{"$f":"SUMIFS(Activos[AÑO ANTERIOR],Activos[TIPO DE ACTIVO],Panel[[#This Row],[TIPO DE ACTIVO]])+SUMIFS(Deudas[AÑO ANTERIOR],Deudas[TIPO DE PASIVO],Panel[[#This Row],[TIPO DE ACTIVO]])","v":0},{"$f":"SUMIFS(Activos[AÑO ACTUAL],Activos[TIPO DE ACTIVO],Panel[[#This Row],[TIPO DE ACTIVO]])+SUMIFS(Deudas[AÑO ACTUAL],Deudas[TIPO DE PASIVO],Panel[[#This Row],[TIPO DE ACTIVO]])","v":0}]
[null,"Patrimonio Neto",{"$f":"SUMIFS(Activos[AÑO ANTERIOR],Activos[TIPO DE ACTIVO],Panel[[#This Row],[TIPO DE ACTIVO]])+SUMIFS(Deudas[AÑO ANTERIOR],Deudas[TIPO DE PASIVO],Panel[[#This Row],[TIPO DE ACTIVO]])","v":0},{"$f":"SUMIFS(Activos[AÑO ACTUAL],Activos[TIPO DE ACTIVO],Panel[[#This Row],[TIPO DE ACTIVO]])+SUMIFS(Deudas[AÑO ACTUAL],Deudas[TIPO DE PASIVO],Panel[[#This Row],[TIPO DE ACTIVO]])","v":350}]
[null,"ACTIVO TOTAL",{"$f":"Activos[[#Totals],[AÑO ANTERIOR]]","v":500},{"$f":"Activos[[#Totals],[AÑO ACTUAL]]","v":515}]
[null,"PASIVO TOTAL Y PATRIMONIO NETO",{"$f":"Deudas[[#Totals],[AÑO ANTERIOR]]","v":500},{"$f":"Deudas[[#Totals],[AÑO ACTUAL]]","v":700}]
[null,"BALANCE",{"$f":"C11-C12","v":0},{"$f":"D11-D12","v":{"v":-185,"d":"-185 "}}]

{"sheet":"Activos","index":1,"n_rows":15,"n_cols":5,"rows_kept":15}
[]
[null,"ACTIVOS"]
[{"$nulls":3},{"$f":"EJERCICIO","v":"FY-2023"},{"$f":"EJERCICIO_2","v":"FY-2024"}]
[null,"TIPO DE ACTIVO","DESCRIPCIÓN","AÑO ANTERIOR","AÑO ACTUAL"]
[null,"Activo circulante","Efectivo",600,600]
[null,"Activo circulante","Inversiones"]
[null,"Activo circulante","Existencias"]
[null,"Activo circulante","Cuentas por cobrar"]
[null,"Activo circulante","Gastos prepagados"]
[null,"Activo fijo","Propiedad y equipos"]
[null,"Activo fijo","Mejoras de arrendamiento"]
[null,"Activo fijo","Capital y otras inversiones"]
[null,"Activo fijo","Menos amortización acumulada (valor negativo)",{"v":-100,"d":"-100 "},{"v":-85,"d":"-85 "}]
[null,"Otro activo","Beneficencia"]
[null,"ACTIVO TOTAL",null,{"$f":"SUBTOTAL(109,Activos[AÑO ANTERIOR])","v":500},{"$f":"SUBTOTAL(109,Activos[AÑO ACTUAL])","v":515}]

{"sheet":"Deudas","index":2,"n_rows":13,"n_cols":5,"rows_kept":13}
[]
[null,"DEUDAS"]
[{"$nulls":3},{"$f":"EJERCICIO","v":"FY-2023"},{"$f":"EJERCICIO_2","v":"FY-2024"}]
[null,"TIPO DE PASIVO","DESCRIPCIÓN","AÑO ANTERIOR","AÑO ACTUAL"]
[null,"Pasivo circulante","Cuentas por pagar",null,350]
[null,"Pasivo circulante","Sueldo acumulado"]
[null,"Pasivo circulante","Compensación acumulada",500]
[null,"Pasivo circulante","Impuestos sobre ingresos por pagar"]
[null,"Pasivo circulante","Ingresos no devengados"]
[null,"Pasivo a largo plazo","Hipoteca por pagar"]
[null,"Patrimonio Neto","Capital de inversión",null,350]
[null,"Patrimonio Neto","Ganancias no distribuidas acumuladas"]
[null,"PASIVO TOTAL Y PATRIMONIO NETO",null,{"$f":"SUBTOTAL(109,Deudas[AÑO ANTERIOR])","v":500},{"$f":"SUBTOTAL(109,Deudas[AÑO ACTUAL])","v":700}]

{"sheet":"Categorías","index":3,"n_rows":10,"n_cols":2,"rows_kept":10}
[]
[null,"CATEGORÍAS"]
[]
[null,"CATEGORÍAS"]
[null,"Activo circulante"]
[null,"Activo fijo"]
[null,"Otro activo"]
[null,"Pasivo circulante"]
[null,"Pasivo a largo plazo"]
[null,"Patrimonio Neto"]